{"text_format":"3","workbook":"xlsx","n_sheets":1,"sheets":["Список покупок"],"not_rendered":{"images":1,"defined_names":3},"read":"whole","date_system":"1900"}

{"sheet":"Список покупок","index":0,"n_rows":31,"n_cols":8,"rows_kept":31,"merged":[[1,1,1,2]]}
[null,"Список покупок"]
[null,"ДАТА"]
[null,"Куплено?","Название","Категория","Количество","Цена","Итоговая стоимость","Торговая марка/заметки"]
[null,null,"Апельсины","Фрукты и овощи",null,null,{"$f":"IFERROR(SUM(Список_продуктов[Количество]*Список_продуктов[Цена]), \"\")","v":{"v":0,"d":"0.00 ₽"}}]
[null,null,"Яблоки","Фрукты и овощи",null,null,{"$f":"IFERROR(SUM(Список_продуктов[Количество]*Список_продуктов[Цена]), \"\")","v":{"v":0,"d":"0.00 ₽"}}]
[null,null,"Бананы","Фрукты и овощи",null,null,{"$f":"IFERROR(SUM(Список_продуктов[Количество]*Список_продуктов[Цена]), \"\")","v":{"v":0,"d":"0.00 ₽"}}]
[null,null,"Салат","Фрукты и овощи",null,null,{"$f":"IFERROR(SUM(Список_продуктов[Количество]*Список_продуктов[Цена]), \"\")","v":{"v":0,"d":"0.00 ₽"}}]
[null,null,"Помидоры","Фрукты и овощи",null,null,{"$f":"IFERROR(SUM(Список_продуктов[Количество]*Список_продуктов[Цена]), \"\")","v":{"v":0,"d":"0.00 ₽"}},"  "]
[null,null,"Молоко ","Молочные продукты",null,null,{"$f":"IFERROR(SUM(Список_продуктов[Количество]*Список_продуктов[Цена]), \"\")","v":{"v":0,"d":"0.00 ₽"}}]
[null,null,"Сыр","Молочные продукты",null,null,{"$f":"IFERROR(SUM(Список_продуктов[Количество]*Список_продуктов[Цена]), \"\")","v":{"v":0,"d":"0.00 ₽"}}]
[null,null,"Яйца","Молочные продукты",null,null,{"$f":"IFERROR(SUM(Список_продуктов[Количество]*Список_продуктов[Цена]), \"\")","v":{"v":0,"d":"0.00 ₽"}}]
[null,null,"Творог","Молочные продукты",null,null,{"$f":"IFERROR(SUM(Список_продуктов[Количество]*Список_продуктов[Цена]), \"\")","v":{"v":0,"d":"0.00 ₽"}}]
[null,null,"Говядина","Мясо",null,null,{"$f":"IFERROR(SUM(Список_продуктов[Количество]*Список_продуктов[Цена]), \"\")","v":{"v":0,"d":"0.00 ₽"}}]
[null,null,"Птица","Мясо",null,null,{"$f":"IFERROR(SUM(Список_продуктов[Количество]*Список_продуктов[Цена]), \"\")","v":{"v":0,"d":"0.00 ₽"}}]
[null,null,"Ветчина","Мясо",null,null,{"$f":"IFERROR(SUM(Список_продуктов[Количество]*Список_продуктов[Цена]), \"\")","v":{"v":0,"d":"0.00 ₽"}}]
[null,null,"Сок","Напитки",null,null,{"$f":"IFERROR(SUM(Список_продуктов[Количество]*Список_продуктов[Цена]), \"\")","v":{"v":0,"d":"0.00 ₽"}}]
[null,null,"Кофе","Напитки",null,null,{"$f":"IFERROR(SUM(Список_продуктов[Количество]*Список_продуктов[Цена]), \"\")","v":{"v":0,"d":"0.00 ₽"}}]
[null,null,"Чай","Напитки",null,null,{"$f":"IFERROR(SUM(Список_продуктов[Количество]*Список_продуктов[Цена]), \"\")","v":{"v":0,"d":"0.00 ₽"}}]
[null,null,"Вода","Напитки",null,null,{"$f":"IFERROR(SUM(Список_продуктов[Количество]*Список_продуктов[Цена]), \"\")","v":{"v":0,"d":"0.00 ₽"}}]
[null,null,"Макароны","Макаронные изделия",null,null,{"$f":"IFERROR(SUM(Список_продуктов[Количество]*Список_продуктов[Цена]), \"\")","v":{"v":0,"d":"0.00 ₽"}}]
[null,null,"Рис","Макаронные изделия",null,null,{"$f":"IFERROR(SUM(Список_продуктов[Количество]*Список_продуктов[Цена]), \"\")","v":{"v":0,"d":"0.00 ₽"}}]
[null,null,"Консервы","Суп",null,null,{"$f":"IFERROR(SUM(Список_продуктов[Количество]*Список_продуктов[Цена]), \"\")","v":{"v":0,"d":"0.00 ₽"}}]
[null,null,"Сухая смесь","Суп",null,null,{"$f":"IFERROR(SUM(Список_продуктов[Количество]*Список_продуктов[Цена]), \"\")","v":{"v":0,"d":"0.00 ₽"}}]
[null,null,"Хлеб","Выпечка",null,null,{"$f":"IFERROR(SUM(Список_продуктов[Количество]*Список_продуктов[Цена]), \"\")","v":{"v":0,"d":"0.00 ₽"}}]
[null,null,"Чипсы","Снеки",null,null,{"$f":"IFERROR(SUM(Список_продуктов[Количество]*Список_продуктов[Цена]), \"\")","v":{"v":0,"d":"0.00 ₽"}}]
[null,null,"Крендели","Снеки",null,null,{"$f":"IFERROR(SUM(Список_продуктов[Количество]*Список_продуктов[Цена]), \"\")","v":{"v":0,"d":"0.00 ₽"}}]
[null,null,"Мороженое","Снеки",null,null,{"$f":"IFERROR(SUM(Список_продуктов[Количество]*Список_продуктов[Цена]), \"\")","v":{"v":0,"d":"0.00 ₽"}}]
[null,null,"Печенье","Снеки",null,null,{"$f":"IFERROR(SUM(Список_продуктов[Количество]*Список_продуктов[Цена]), \"\")","v":{"v":0,"d":"0.00 ₽"}}]
[null,null,"Одноразовые тарелки","Принадлежности",null,null,{"$f":"IFERROR(SUM(Список_продуктов[Количество]*Список_продуктов[Цена]), \"\")","v":{"v":0,"d":"0.00 ₽"}}]
[null,null,"Салфетки","Принадлежности",null,null,{"$f":"IFERROR(SUM(Список_продуктов[Количество]*Список_продуктов[Цена]), \"\")","v":{"v":0,"d":"0.00 ₽"}}]
[{"$nulls":6},{"$f":"SUBTOTAL(109,Список_продуктов[Итоговая стоимость])","v":{"v":0,"d":"0.00 ₽"}}]